[Event "*** Titled Tuesday Blitz"]
[Site "Chess.com"]
[Date "2019.05.07"]
[Round "9"]
[White "Vamostodorecto"]
[Black "WPWPWP-2015"]
[Result "1-0"]
[WhiteElo "2409"]
[BlackElo "2357"]
[TimeControl "180+2"]
[EndTime "15:08:22 PDT"]
[Termination "Vamostodorecto won by resignation"]

1. d4 {[%clk 0:02:45.2]} 1... Nf6 {[%clk 0:02:59.3]} 2. c4 {[%clk 0:02:45.5]}
2... e6 {[%clk 0:02:59.9]} 3. Nc3 {[%clk 0:02:45.5]} 3... Bb4 {[%clk 0:03:00.2]}
4. a3 {[%clk 0:02:46.6]} 4... Bxc3+ {[%clk 0:03:00.1]} 5. bxc3 {[%clk
0:02:48.5]} 5... O-O {[%clk 0:03:00.4]} 6. f3 {[%clk 0:02:49.2]} 6... c5 {[%clk
0:03:01.4]} 7. e4 {[%clk 0:02:49.7]} 7... d6 {[%clk 0:03:00.7]} 8. Bd3 {[%clk
0:02:50.4]} 8... e5 {[%clk 0:03:01.5]} 9. Ne2 {[%clk 0:02:51.7]} 9... Nc6 {[%clk
0:03:01.2]} 10. O-O {[%clk 0:02:52.7]} 10... Qc7 {[%clk 0:02:58.6]} 11. d5
{[%clk 0:02:52.6]} 11... Na5 {[%clk 0:02:58.9]} 12. Ng3 {[%clk 0:02:48.1]} 12...
b6 {[%clk 0:02:59.1]} 13. Bg5 {[%clk 0:02:41.8]} 13... Nd7 {[%clk 0:02:58.6]}
14. Be7 {[%clk 0:02:31]} 14... Re8 {[%clk 0:02:59]} 15. Nf5 {[%clk 0:02:32.7]}
15... Nb7 {[%clk 0:02:59.4]} 16. Bg5 {[%clk 0:02:22.5]} 16... f6 {[%clk
0:02:54]} 17. Be3 {[%clk 0:02:19.9]} 17... Na5 {[%clk 0:02:54.1]} 18. Qe1 {[%clk
0:02:19.6]} 18... Nf8 {[%clk 0:02:51.1]} 19. Qg3 {[%clk 0:02:08.3]} 19... Ba6
{[%clk 0:02:48.5]} 20. Bh6 {[%clk 0:02:02.6]} 20... g6 {[%clk 0:02:42.2]} 21.
Ne3 {[%clk 0:02:01.3]} 21... Qf7 {[%clk 0:02:18.2]} 22. f4 {[%clk 0:02:01.8]}
22... Nd7 {[%clk 0:02:17.1]} 23. h4 {[%clk 0:01:56.7]} 23... Re7 {[%clk
0:02:07.9]} 24. Rf2 {[%clk 0:01:38.8]} 24... Kh8 {[%clk 0:02:07.9]} 25. Raf1
{[%clk 0:01:38.7]} 25... Rg8 {[%clk 0:02:01.4]} 26. fxe5 {[%clk 0:01:37.6]}
26... Rxe5 {[%clk 0:02:00.6]} 27. Bf4 {[%clk 0:01:34.2]} 27... Qe7 {[%clk
0:01:57.9]} 28. Bxe5 {[%clk 0:01:33.6]} 28... dxe5 {[%clk 0:01:57.3]} 29. Ng4
{[%clk 0:01:24.6]} 29... Rf8 {[%clk 0:01:56.1]} 30. Ne3 {[%clk 0:01:19.7]} 30...
Nb7 {[%clk 0:01:50.4]} 31. h5 {[%clk 0:01:19.1]} 31... Rg8 {[%clk 0:01:45.5]}
32. hxg6 {[%clk 0:01:13.6]} 32... hxg6 {[%clk 0:01:27.6]} 33. Qh4+ {[%clk
0:01:12.5]} 33... Kg7 {[%clk 0:01:26.4]} 34. Ng4 {[%clk 0:01:08.1]} 34... Rh8
{[%clk 0:01:23.3]} 35. Qg3 {[%clk 0:01:08.4]} 35... Nd6 {[%clk 0:01:09.8]} 36.
Nxf6 {[%clk 0:01:06.1]} 36... Nxf6 {[%clk 0:01:10.1]} 37. Rxf6 {[%clk
0:01:07.1]} 37... Qxf6 {[%clk 0:01:11.3]} 38. Rxf6 {[%clk 0:01:06.9]} 38... Kxf6
{[%clk 0:01:12.4]} 39. Qf3+ {[%clk 0:01:03.7]} 39... Kg7 {[%clk 0:01:11.8]} 40.
Qg4 {[%clk 0:01:03.8]} 40... Bc8 {[%clk 0:01:10.5]} 41. Qg5 {[%clk 0:00:57.3]}
41... Re8 {[%clk 0:01:10.7]} 42. a4 {[%clk 0:00:44.9]} 42... Bd7 {[%clk
0:01:10.1]} 43. a5 {[%clk 0:00:41]} 43... bxa5 {[%clk 0:01:10.2]} 44. Qe3 {[%clk
0:00:42.1]} 44... Rc8 {[%clk 0:01:10.4]} 45. Qg3 {[%clk 0:00:43.2]} 45... Nf7
{[%clk 0:01:07.7]} 46. Be2 {[%clk 0:00:42]} 46... Rh8 {[%clk 0:00:56.2]} 47. Qe3
{[%clk 0:00:37.8]} 47... Rc8 {[%clk 0:00:55.7]} 48. Qg3 {[%clk 0:00:38.5]} 48...
Kf6 {[%clk 0:00:31.2]} 49. Bg4 {[%clk 0:00:29.7]} 49... Rd8 {[%clk 0:00:23.7]}
50. Qh4+ {[%clk 0:00:22.5]} 50... Ng5 {[%clk 0:00:21.5]} 51. Bxd7 {[%clk
0:00:19.9]} 51... Rxd7 {[%clk 0:00:22.6]} 52. Qh8+ {[%clk 0:00:21.3]} 52... Kf7
{[%clk 0:00:10.3]} 53. Qxe5 {[%clk 0:00:21.2]} 53... Re7 {[%clk 0:00:07.5]} 54.
Qxg5 {[%clk 0:00:21.3]} 54... Rxe4 {[%clk 0:00:08.4]} 55. d6 {[%clk 0:00:21.8]}
55... Re1+ {[%clk 0:00:06.2]} 56. Kf2 {[%clk 0:00:21.9]} 56... Re6 {[%clk
0:00:05.7]} 57. Qxc5 {[%clk 0:00:20.4]} 57... Rf6+ {[%clk 0:00:05.5]} 58. Kg3
{[%clk 0:00:20.6]} 58... Ke6 {[%clk 0:00:05.7]} 59. Qd5+ {[%clk 0:00:20]} 59...
Kd7 {[%clk 0:00:06.5]} 60. c5 {[%clk 0:00:21.6]} 60... a4 {[%clk 0:00:06.7]} 61.
c6+ {[%clk 0:00:22.2]} 1-0

[Event "*** Titled Tuesday Blitz"]
[Site "Chess.com"]
[Date "2019.05.07"]
[Round "9"]
[White "Fins0905"]
[Black "Gentlejimmy7"]
[Result "0-1"]
[WhiteElo "2663"]
[BlackElo "2484"]
[TimeControl "180+2"]
[EndTime "15:08:27 PDT"]
[Termination "Gentlejimmy7 won by resignation"]

1. d4 {[%clk 0:03:01.9]} 1... d5 {[%clk 0:02:56.6]} 2. c4 {[%clk 0:03:02]} 2...
dxc4 {[%clk 0:02:56.6]} 3. Nf3 {[%clk 0:03:02.3]} 3... Nf6 {[%clk 0:02:54.2]} 4.
e3 {[%clk 0:03:03.1]} 4... e6 {[%clk 0:02:53.3]} 5. Bxc4 {[%clk 0:03:03.6]} 5...
c5 {[%clk 0:02:52]} 6. O-O {[%clk 0:02:58.1]} 6... a6 {[%clk 0:02:51]} 7. Bb3
{[%clk 0:02:57.6]} 7... b5 {[%clk 0:02:48.1]} 8. a4 {[%clk 0:02:57.1]} 8... b4
{[%clk 0:02:46.6]} 9. Nbd2 {[%clk 0:02:56.9]} 9... Bb7 {[%clk 0:02:42.5]} 10.
Qe2 {[%clk 0:02:45.8]} 10... Nbd7 {[%clk 0:02:41.2]} 11. a5 {[%clk 0:02:43.8]}
11... Be7 {[%clk 0:02:40.2]} 12. Ba4 {[%clk 0:02:38]} 12... O-O {[%clk
0:02:38.2]} 13. Nc4 {[%clk 0:02:33.9]} 13... Qc7 {[%clk 0:02:35.9]} 14. Bd2
{[%clk 0:02:29.2]} 14... Bxf3 {[%clk 0:02:23.9]} 15. Qxf3 {[%clk 0:02:11.2]}
15... cxd4 {[%clk 0:02:23.6]} 16. Rfc1 {[%clk 0:02:12]} 16... dxe3 {[%clk
0:02:05.5]} 17. Nb6 {[%clk 0:01:57]} 17... exf2+ {[%clk 0:02:03.1]} 18. Kh1
{[%clk 0:01:32.4]} 18... Qd6 {[%clk 0:01:47.6]} 19. Be3 {[%clk 0:01:06.1]} 19...
Ne5 {[%clk 0:01:43.3]} 20. Qxf2 {[%clk 0:00:40.6]} 20... Nfg4 {[%clk 0:01:33.1]}
21. Qg3 {[%clk 0:00:32.7]} 21... Nxe3 {[%clk 0:01:26.3]} 22. Qxe3 {[%clk
0:00:33.7]} 22... Ng4 {[%clk 0:01:27.2]} 23. Qg3 {[%clk 0:00:24.6]} 23... Qxg3
{[%clk 0:01:22.9]} 24. hxg3 {[%clk 0:00:26.5]} 24... Rad8 {[%clk 0:01:18.6]} 25.
Bc6 {[%clk 0:00:18.3]} 25... Bf6 {[%clk 0:01:11]} 26. Rab1 {[%clk 0:00:17]}
26... Rd2 {[%clk 0:01:10.6]} 27. Nc4 {[%clk 0:00:13.4]} 27... Rf2 {[%clk
0:01:03.4]} 28. Rd1 {[%clk 0:00:06.3]} 28... Rf5 {[%clk 0:00:55]} 29. Bb7 {[%clk
0:00:05.1]} 29... Nf2+ {[%clk 0:00:47.3]} 30. Kg1 {[%clk 0:00:02.6]} 30... Nxd1
{[%clk 0:00:48.2]} 31. Rxd1 {[%clk 0:00:04.2]} 31... Rc5 {[%clk 0:00:30.4]} 32.
b3 {[%clk 0:00:04.8]} 32... Rd8 {[%clk 0:00:21.1]} 33. Rc1 {[%clk 0:00:03.1]}
33... Bd4+ {[%clk 0:00:15.6]} 34. Kf1 {[%clk 0:00:03.8]} 34... Bc3 {[%clk
0:00:10.6]} 35. Bxa6 {[%clk 0:00:02.3]} 35... Ra8 {[%clk 0:00:12.2]} 36. Bb7
{[%clk 0:00:03]} 36... Raxa5 {[%clk 0:00:13.4]} 37. Nxa5 {[%clk 0:00:04.1]}
37... Rxa5 {[%clk 0:00:14.7]} 38. Rd1 {[%clk 0:00:05.4]} 38... Ra1 {[%clk
0:00:16]} 39. Rxa1 {[%clk 0:00:05.7]} 39... Bxa1 {[%clk 0:00:17.9]} 40. Ke2
{[%clk 0:00:07.1]} 40... Be5 {[%clk 0:00:19.1]} 41. Kf3 {[%clk 0:00:07.9]} 41...
Kf8 {[%clk 0:00:20.2]} 42. Be4 {[%clk 0:00:08.2]} 42... g6 {[%clk 0:00:20.8]}
43. Bc6 {[%clk 0:00:08]} 43... Ke7 {[%clk 0:00:22.3]} 44. Bb5 {[%clk 0:00:08.3]}
44... Kf6 {[%clk 0:00:23.7]} 45. Be8 {[%clk 0:00:08.6]} 45... Bc3 {[%clk
0:00:23.8]} 46. Bb5 {[%clk 0:00:09.1]} 46... Be1 {[%clk 0:00:24.8]} 47. Be8
{[%clk 0:00:09.4]} 47... h5 {[%clk 0:00:25.1]} 48. Bb5 {[%clk 0:00:10.1]} 48...
Ke7 {[%clk 0:00:25.6]} 49. g4 {[%clk 0:00:10.5]} 49... hxg4+ {[%clk 0:00:25.3]}
50. Kxg4 {[%clk 0:00:12.4]} 50... Bd2 {[%clk 0:00:25.8]} 51. Kf3 {[%clk
0:00:10.2]} 51... f5 {[%clk 0:00:25.9]} 52. g4 {[%clk 0:00:10.3]} 52... Kf6
{[%clk 0:00:24]} 53. Bd7 {[%clk 0:00:05.8]} 53... e5 {[%clk 0:00:20.1]} 54. Ke2
{[%clk 0:00:06.9]} 54... Bc1 {[%clk 0:00:20.5]} 55. Kd3 {[%clk 0:00:06.6]} 55...
e4+ {[%clk 0:00:19.7]} 56. Kd4 {[%clk 0:00:05.5]} 56... Bb2+ {[%clk 0:00:20.6]}
57. Ke3 {[%clk 0:00:05.1]} 57... Ke5 {[%clk 0:00:20.6]} 58. gxf5 {[%clk
0:00:05.1]} 58... gxf5 {[%clk 0:00:22.5]} 59. Ke2 {[%clk 0:00:06.2]} 59... f4
{[%clk 0:00:23.6]} 60. Bg4 {[%clk 0:00:05.2]} 60... f3+ {[%clk 0:00:23.6]} 61.
Kd2 {[%clk 0:00:05.6]} 61... Kd4 {[%clk 0:00:23.3]} 62. Kd1 {[%clk 0:00:05.6]}
62... Bc3 {[%clk 0:00:23.4]} 63. Bh5 {[%clk 0:00:05.4]} 63... Ke3 {[%clk
0:00:24.7]} 64. Bg4 {[%clk 0:00:05.9]} 64... Kf2 {[%clk 0:00:25.5]} 0-1

[Event "*** Titled Tuesday Blitz"]
[Site "Chess.com"]
[Date "2019.05.07"]
[Round "9"]
[White "Marcus_Harvey"]
[Black "maxip32"]
[Result "1-0"]
[WhiteElo "2643"]
[BlackElo "2446"]
[TimeControl "180+2"]
[EndTime "15:08:28 PDT"]
[Termination "Marcus_Harvey won by resignation"]

1. d4 {[%clk 0:03:01.9]} 1... Nf6 {[%clk 0:03:00.5]} 2. Nf3 {[%clk 0:03:03.8]}
2... g6 {[%clk 0:03:01.9]} 3. Bg5 {[%clk 0:03:03.8]} 3... Bg7 {[%clk 0:03:03.2]}
4. Nbd2 {[%clk 0:03:03.2]} 4... O-O {[%clk 0:03:04.4]} 5. e4 {[%clk 0:03:04.4]}
5... d5 {[%clk 0:03:06]} 6. e5 {[%clk 0:03:04.9]} 6... Ne4 {[%clk 0:03:06.8]} 7.
Nxe4 {[%clk 0:03:05.8]} 7... dxe4 {[%clk 0:03:07.4]} 8. Ng1 {[%clk 0:03:06.1]}
8... c5 {[%clk 0:03:06.5]} 9. dxc5 {[%clk 0:03:03.6]} 9... Qa5+ {[%clk
0:03:06.6]} 10. c3 {[%clk 0:03:02.8]} 10... Qxc5 {[%clk 0:03:06.9]} 11. Qd4
{[%clk 0:02:59.3]} 11... Qxe5 {[%clk 0:02:53.8]} 12. Qxe5 {[%clk 0:02:58.6]}
12... Bxe5 {[%clk 0:02:55.7]} 13. Bxe7 {[%clk 0:02:59.6]} 13... Re8 {[%clk
0:02:57.6]} 14. Bg5 {[%clk 0:03:00.4]} 14... Nc6 {[%clk 0:02:59.5]} 15. Be3
{[%clk 0:02:59.5]} 15... Be6 {[%clk 0:02:59.4]} 16. Ne2 {[%clk 0:03:00.5]} 16...
Rad8 {[%clk 0:02:59.9]} 17. Nf4 {[%clk 0:03:01.7]} 17... Bg4 {[%clk 0:02:41]}
18. h3 {[%clk 0:03:00.8]} 18... Bf5 {[%clk 0:02:40.9]} 19. g4 {[%clk 0:02:59.7]}
19... Bc8 {[%clk 0:02:41.5]} 20. Bc4 {[%clk 0:02:57]} 20... Kg7 {[%clk
0:02:39.8]} 21. a4 {[%clk 0:02:46.6]} 21... f5 {[%clk 0:02:36.5]} 22. gxf5
{[%clk 0:02:46.3]} 22... Bxf5 {[%clk 0:02:38.4]} 23. a5 {[%clk 0:02:43.6]} 23...
Bc7 {[%clk 0:02:38.3]} 24. a6 {[%clk 0:02:42.6]} 24... Ne5 {[%clk 0:02:34.5]}
25. Bb5 {[%clk 0:02:39.1]} 25... Nf3+ {[%clk 0:02:30.2]} 26. Ke2 {[%clk
0:02:35.7]} 26... Re5 {[%clk 0:02:32.1]} 27. Bc4 {[%clk 0:02:07.5]} 27... b6
{[%clk 0:02:30.6]} 28. Rad1 {[%clk 0:02:04.2]} 28... Ree8 {[%clk 0:02:20.1]} 29.
Nd5 {[%clk 0:02:02.6]} 29... Be5 {[%clk 0:02:05.3]} 30. Bb5 {[%clk 0:01:57.6]}
30... Rf8 {[%clk 0:01:58]} 31. Nb4 {[%clk 0:01:55.6]} 31... Rxd1 {[%clk
0:01:58.3]} 32. Kxd1 {[%clk 0:01:51.8]} 32... Rf7 {[%clk 0:01:49.7]} 33. Nc6
{[%clk 0:01:51.6]} 33... Bd6 {[%clk 0:01:48.7]} 34. Kc2 {[%clk 0:01:38.4]} 34...
Bc5 {[%clk 0:01:44.8]} 35. b4 {[%clk 0:01:27.4]} 35... Bxe3 {[%clk 0:01:45.4]}
36. fxe3 {[%clk 0:01:29.3]} 36... Rc7 {[%clk 0:01:45.2]} 37. Nd4 {[%clk
0:01:28.4]} 37... Kf6 {[%clk 0:01:31.1]} 38. h4 {[%clk 0:01:16.2]} 38... Ke5
{[%clk 0:01:29.9]} 39. Bc6 {[%clk 0:01:05.5]} 39... Nxd4+ {[%clk 0:01:25.1]} 40.
exd4+ {[%clk 0:01:02.5]} 40... Kf4 {[%clk 0:01:23.1]} 41. b5 {[%clk 0:01:01.6]}
41... e3+ {[%clk 0:01:23.3]} 42. Kb3 {[%clk 0:01:02.8]} 42... e2 {[%clk
0:01:20.7]} 43. d5 {[%clk 0:00:51.9]} 43... Ke3 {[%clk 0:01:20.2]} 44. d6 {[%clk
0:00:51]} 44... Rg7 {[%clk 0:01:19.4]} 45. c4 {[%clk 0:00:41.6]} 45... Kd2
{[%clk 0:00:39.6]} 46. c5 {[%clk 0:00:42]} 46... bxc5 {[%clk 0:00:29.5]} 47. Kc4
{[%clk 0:00:20.1]} 47... e1=Q {[%clk 0:00:19.1]} 48. Rxe1 {[%clk 0:00:20.7]}
48... Kxe1 {[%clk 0:00:21]} 49. Kxc5 {[%clk 0:00:19.5]} 49... Bd3 {[%clk
0:00:21.4]} 50. d7 {[%clk 0:00:19.6]} 50... Rg8 {[%clk 0:00:21.4]} 51. Kd6
{[%clk 0:00:20.4]} 51... h6 {[%clk 0:00:17.9]} 52. Kc7 {[%clk 0:00:19.2]} 52...
g5 {[%clk 0:00:11.1]} 53. hxg5 {[%clk 0:00:19.2]} 53... hxg5 {[%clk 0:00:13]}
54. d8=Q {[%clk 0:00:20.5]} 54... Rxd8 {[%clk 0:00:14.2]} 55. Kxd8 {[%clk
0:00:22.4]} 55... g4 {[%clk 0:00:15.5]} 56. b6 {[%clk 0:00:23.3]} 56... axb6
{[%clk 0:00:08.2]} 57. a7 {[%clk 0:00:24.1]} 57... g3 {[%clk 0:00:10.1]} 58.
a8=Q {[%clk 0:00:24.6]} 58... Be2 {[%clk 0:00:08.9]} 59. Kc7 {[%clk 0:00:24.3]}
59... b5 {[%clk 0:00:09.9]} 60. Kb6 {[%clk 0:00:24.7]} 60... b4 {[%clk
0:00:10.5]} 61. Kc5 {[%clk 0:00:25.4]} 61... b3 {[%clk 0:00:11.6]} 62. Qa1+
{[%clk 0:00:24.8]} 62... Kf2 {[%clk 0:00:12.7]} 63. Qd4+ {[%clk 0:00:25.5]}
63... Kf1 {[%clk 0:00:13.4]} 64. Qf4+ {[%clk 0:00:25.1]} 1-0

[Event "*** Titled Tuesday Blitz"]
[Site "Chess.com"]
[Date "2019.05.07"]
[Round "9"]
[White "BvsN"]
[Black "Walter_White_Poland"]
[Result "0-1"]
[WhiteElo "2291"]
[BlackElo "2296"]
[TimeControl "180+2"]
[EndTime "15:08:32 PDT"]
[Termination "Walter_White_Poland won by resignation"]

1. d4 {[%clk 0:03:01.9]} 1... Nf6 {[%clk 0:03:00.9]} 2. c4 {[%clk 0:03:03]} 2...
c5 {[%clk 0:03:00.9]} 3. d5 {[%clk 0:03:03.8]} 3... e6 {[%clk 0:03:02.1]} 4. Nc3
{[%clk 0:03:04.6]} 4... exd5 {[%clk 0:03:03.2]} 5. cxd5 {[%clk 0:03:06.3]} 5...
d6 {[%clk 0:03:04.5]} 6. e4 {[%clk 0:03:07.7]} 6... g6 {[%clk 0:03:05.7]} 7.
Nge2 {[%clk 0:03:09]} 7... Bg7 {[%clk 0:03:06.7]} 8. Ng3 {[%clk 0:03:10.3]} 8...
O-O {[%clk 0:03:05.2]} 9. Be2 {[%clk 0:03:11.5]} 9... a6 {[%clk 0:03:05.7]} 10.
a4 {[%clk 0:03:12.7]} 10... h5 {[%clk 0:03:06.6]} 11. Bg5 {[%clk 0:03:13.8]}
11... Qc7 {[%clk 0:03:06.1]} 12. Qd2 {[%clk 0:03:11.6]} 12... Re8 {[%clk
0:03:04.4]} 13. O-O {[%clk 0:03:10.3]} 13... Nh7 {[%clk 0:03:02.5]} 14. Bh6
{[%clk 0:03:10.6]} 14... Bd4 {[%clk 0:02:53]} 15. Rfc1 {[%clk 0:03:03.4]} 15...
h4 {[%clk 0:02:32.9]} 16. Nf1 {[%clk 0:03:04.1]} 16... h3 {[%clk 0:02:25.5]} 17.
g3 {[%clk 0:03:01.3]} 17... Qe7 {[%clk 0:02:18.3]} 18. Be3 {[%clk 0:02:28.6]}
18... Bg7 {[%clk 0:01:47.7]} 19. Bd3 {[%clk 0:02:13.1]} 19... Nd7 {[%clk
0:01:47.6]} 20. f4 {[%clk 0:01:48.7]} 20... Ndf6 {[%clk 0:01:21.2]} 21. Kh1
{[%clk 0:01:13.5]} 21... Ng4 {[%clk 0:01:12.9]} 22. Bg1 {[%clk 0:01:12]} 22...
Bd4 {[%clk 0:00:43.1]} 23. Re1 {[%clk 0:01:02.1]} 23... Bxg1 {[%clk 0:00:32]}
24. Kxg1 {[%clk 0:01:02.8]} 24... Qf6 {[%clk 0:00:29.8]} 25. e5 {[%clk
0:00:50.5]} 25... dxe5 {[%clk 0:00:29.3]} 26. Ne4 {[%clk 0:00:51.2]} 26... Qb6
{[%clk 0:00:24.1]} 27. Bc4 {[%clk 0:00:50.1]} 27... Bf5 {[%clk 0:00:16.8]} 28.
d6 {[%clk 0:00:35.5]} 28... Rad8 {[%clk 0:00:16.1]} 29. Rad1 {[%clk 0:00:34.7]}
29... Bxe4 {[%clk 0:00:15.1]} 30. Rxe4 {[%clk 0:00:35.4]} 30... Nhf6 {[%clk
0:00:16.1]} 31. Ree1 {[%clk 0:00:29.7]} 31... e4 {[%clk 0:00:15.6]} 32. b3
{[%clk 0:00:22.9]} 32... Rd7 {[%clk 0:00:09.1]} 33. f5 {[%clk 0:00:24]} 33... e3
{[%clk 0:00:08]} 34. Nxe3 {[%clk 0:00:24.2]} 34... Ne5 {[%clk 0:00:09.1]} 35.
Qf2 {[%clk 0:00:18.4]} 35... Rxd6 {[%clk 0:00:09.5]} 36. fxg6 {[%clk 0:00:17.6]}
36... Nxg6 {[%clk 0:00:07.8]} 37. Rxd6 {[%clk 0:00:17.9]} 37... Qxd6 {[%clk
0:00:07.8]} 38. Nf5 {[%clk 0:00:17.1]} 38... Rxe1+ {[%clk 0:00:07.6]} 39. Qxe1
{[%clk 0:00:18.2]} 39... Qe5 {[%clk 0:00:07.6]} 40. Ne7+ {[%clk 0:00:16.5]}
40... Qxe7 {[%clk 0:00:07.4]} 41. Qd2 {[%clk 0:00:16]} 41... Qe5 {[%clk
0:00:07.4]} 42. Qd8+ {[%clk 0:00:16.2]} 42... Kg7 {[%clk 0:00:07.9]} 43. Qd2
{[%clk 0:00:16.8]} 43... Qd4+ {[%clk 0:00:08.8]} 44. Qxd4 {[%clk 0:00:17.5]}
44... cxd4 {[%clk 0:00:10.5]} 45. Bf1 {[%clk 0:00:17.5]} 45... Ne5 {[%clk
0:00:09.6]} 46. Kf2 {[%clk 0:00:18.6]} 46... Ne4+ {[%clk 0:00:09.6]} 47. Ke1
{[%clk 0:00:19.1]} 47... Nf3+ {[%clk 0:00:09.8]} 48. Kd1 {[%clk 0:00:19.7]}
48... Nxh2 {[%clk 0:00:10.4]} 49. Bxh3 {[%clk 0:00:20.9]} 49... Nxg3 {[%clk
0:00:11.1]} 50. Kd2 {[%clk 0:00:19.6]} 50... f5 {[%clk 0:00:10.6]} 51. Kd3
{[%clk 0:00:18.6]} 51... f4 {[%clk 0:00:11.6]} 52. Kxd4 {[%clk 0:00:19.5]} 52...
f3 {[%clk 0:00:11.4]} 53. Kc5 {[%clk 0:00:20.4]} 53... Kg6 {[%clk 0:00:10]} 54.
Kb6 {[%clk 0:00:21.4]} 54... Kg5 {[%clk 0:00:10.4]} 55. Be6 {[%clk 0:00:16.5]}
55... Ne4 {[%clk 0:00:08.8]} 56. Bc4 {[%clk 0:00:13.1]} 56... Nd6 {[%clk
0:00:09.2]} 57. Bd3 {[%clk 0:00:12.9]} 57... Kf4 {[%clk 0:00:09.9]} 58. Kc7
{[%clk 0:00:12.3]} 58... Ke3 {[%clk 0:00:10.4]} 59. Bf5 {[%clk 0:00:02.2]} 59...
Nxf5 {[%clk 0:00:10.4]} 60. Kxb7 {[%clk 0:00:03.2]} 60... f2 {[%clk 0:00:11.3]}
0-1

[Event "*** Titled Tuesday Blitz"]
[Site "Chess.com"]
[Date "2019.05.07"]
[Round "9"]
[White "c63_amg"]
[Black "MatthewG-p4p"]
[Result "1-0"]
[WhiteElo "2672"]
[BlackElo "2676"]
[TimeControl "180+2"]
[EndTime "15:08:39 PDT"]
[Termination "c63_amg won by resignation"]

1. e4 {[%clk 0:03:01.9]} 1... e6 {[%clk 0:03:00.7]} 2. d4 {[%clk 0:03:02.5]}
2... d5 {[%clk 0:03:01.3]} 3. Nc3 {[%clk 0:03:03.1]} 3... Bb4 {[%clk 0:03:01.2]}
4. Ne2 {[%clk 0:03:03.8]} 4... dxe4 {[%clk 0:03:00.8]} 5. a3 {[%clk 0:03:04.5]}
5... Bxc3+ {[%clk 0:03:02.3]} 6. Nxc3 {[%clk 0:03:06]} 6... Nc6 {[%clk
0:03:04.1]} 7. d5 {[%clk 0:03:07.3]} 7... exd5 {[%clk 0:03:05.5]} 8. Qxd5 {[%clk
0:03:08.4]} 8... Nge7 {[%clk 0:03:06.7]} 9. Qxd8+ {[%clk 0:02:56.7]} 9... Nxd8
{[%clk 0:03:08.6]} 10. Nxe4 {[%clk 0:02:57.7]} 10... O-O {[%clk 0:03:08.5]} 11.
Bd3 {[%clk 0:02:48.7]} 11... Ndc6 {[%clk 0:03:05.1]} 12. O-O {[%clk 0:02:44.8]}
12... Ne5 {[%clk 0:03:04.8]} 13. Be2 {[%clk 0:02:20.5]} 13... Bf5 {[%clk
0:03:03]} 14. f3 {[%clk 0:02:21.8]} 14... Rad8 {[%clk 0:02:59.2]} 15. Bf4 {[%clk
0:02:13.5]} 15... N7g6 {[%clk 0:02:59.9]} 16. Be3 {[%clk 0:02:14.6]} 16... Rfe8
{[%clk 0:02:52.9]} 17. Rfd1 {[%clk 0:02:10.3]} 17... Bxe4 {[%clk 0:02:42.3]} 18.
fxe4 {[%clk 0:02:10.9]} 18... Nc6 {[%clk 0:02:34.3]} 19. Bb5 {[%clk 0:01:53.4]}
19... a6 {[%clk 0:02:15.6]} 20. Rxd8 {[%clk 0:01:40]} 20... Rxd8 {[%clk
0:02:17.5]} 21. Bc4 {[%clk 0:01:13.8]} 21... Nd4 {[%clk 0:02:13.5]} 22. Rc1
{[%clk 0:01:06.4]} 22... b5 {[%clk 0:02:13.6]} 23. Bf1 {[%clk 0:01:05.3]} 23...
f6 {[%clk 0:02:07.7]} 24. c4 {[%clk 0:01:03.5]} 24... c6 {[%clk 0:01:39.3]} 25.
cxb5 {[%clk 0:00:59.7]} 25... cxb5 {[%clk 0:01:41.2]} 26. a4 {[%clk 0:01:00.6]}
26... bxa4 {[%clk 0:01:31.4]} 27. Rc4 {[%clk 0:00:50.6]} 27... Nb3 {[%clk
0:00:47.5]} 28. Rxa4 {[%clk 0:00:49.7]} 28... Rd1 {[%clk 0:00:48.9]} 29. Kf2
{[%clk 0:00:48.5]} 29... Ne5 {[%clk 0:00:49.8]} 30. h3 {[%clk 0:00:38.8]} 30...
Rb1 {[%clk 0:00:37.8]} 31. Ra2 {[%clk 0:00:27.8]} 31... a5 {[%clk 0:00:38.5]}
32. Bb5 {[%clk 0:00:24.9]} 32... Kf8 {[%clk 0:00:21.1]} 33. Kg3 {[%clk
0:00:23.5]} 33... Ke7 {[%clk 0:00:19.6]} 34. Ba4 {[%clk 0:00:19.4]} 34... Nc1
{[%clk 0:00:20.8]} 35. Ra3 {[%clk 0:00:20.2]} 35... Ncd3 {[%clk 0:00:20.6]} 36.
Bc2 {[%clk 0:00:18.4]} 36... Re1 {[%clk 0:00:21.4]} 37. Bd4 {[%clk 0:00:17.7]}
37... Nb4 {[%clk 0:00:16.5]} 38. Bb3 {[%clk 0:00:09]} 38... Rxe4 {[%clk
0:00:14.6]} 39. Bc5+ {[%clk 0:00:10.5]} 39... Kd7 {[%clk 0:00:14.6]} 40. Rxa5
{[%clk 0:00:12.4]} 40... Nbc6 {[%clk 0:00:13]} 41. Rb5 {[%clk 0:00:12.8]} 41...
Kc7 {[%clk 0:00:12.3]} 42. Bb6+ {[%clk 0:00:13.1]} 42... Kd6 {[%clk 0:00:11.7]}
43. Bd5 {[%clk 0:00:14.7]} 43... Re2 {[%clk 0:00:12.2]} 44. Bf3 {[%clk
0:00:11.4]} 44... Nxf3 {[%clk 0:00:12.9]} 45. Kxf3 {[%clk 0:00:13]} 45... Rc2
{[%clk 0:00:14.5]} 46. Bf2 {[%clk 0:00:14]} 46... Ne5+ {[%clk 0:00:15.4]} 47.
Kg3 {[%clk 0:00:15.6]} 47... Kc6 {[%clk 0:00:14]} 48. Rb6+ {[%clk 0:00:16.6]}
48... Kc7 {[%clk 0:00:15.4]} 49. Rb5 {[%clk 0:00:17.1]} 49... h5 {[%clk
0:00:15.2]} 50. Bd4 {[%clk 0:00:16.4]} 50... Nd3 {[%clk 0:00:13.1]} 51. Rb3
{[%clk 0:00:17]} 51... Ne1 {[%clk 0:00:13.1]} 52. Rc3+ {[%clk 0:00:18.5]} 52...
Rxc3+ {[%clk 0:00:14.5]} 53. Bxc3 {[%clk 0:00:19.8]} 53... Nd3 {[%clk
0:00:15.7]} 54. Kf3 {[%clk 0:00:20.1]} 54... Kd6 {[%clk 0:00:17]} 55. Ke4 {[%clk
0:00:21.6]} 55... Nc5+ {[%clk 0:00:18.4]} 56. Kf5 {[%clk 0:00:23]} 56... Ne6
{[%clk 0:00:15.3]} 57. g3 {[%clk 0:00:21.6]} 57... Ng5 {[%clk 0:00:10.2]} 58. h4
{[%clk 0:00:22.5]} 58... Nf7 {[%clk 0:00:06.1]} 59. Kg6 {[%clk 0:00:23.4]} 59...
Nh6 {[%clk 0:00:07.7]} 60. Bd2 {[%clk 0:00:21.8]} 60... Ng4 {[%clk 0:00:08.1]}
61. Kxg7 {[%clk 0:00:22]} 61... Ke6 {[%clk 0:00:05.3]} 62. Kg6 {[%clk
0:00:22.9]} 62... Ne5+ {[%clk 0:00:04.7]} 63. Kxh5 {[%clk 0:00:23.9]} 63... Nf3
{[%clk 0:00:06.3]} 64. Bc3 {[%clk 0:00:23.3]} 64... Kf7 {[%clk 0:00:07.4]} 65.
Kg4 {[%clk 0:00:23.9]} 65... Ng1 {[%clk 0:00:08.8]} 66. b4 {[%clk 0:00:23.7]}
66... Ne2 {[%clk 0:00:09.8]} 67. Bb2 {[%clk 0:00:25.2]} 67... Ng1 {[%clk
0:00:09.1]} 68. b5 {[%clk 0:00:25.7]} 1-0